[Event "*** Titled Tuesday Blitz"]
[Site "Chess.com"]
[Date "2020.04.28"]
[Round "8"]
[White "Gabrielian_Artur"]
[Black "swimmerchess"]
[Result "0-1"]
[WhiteElo "2737"]
[BlackElo "2859"]
[TimeControl "180+1"]
[EndTime "11:36:50 PDT"]
[Termination "swimmerchess won by checkmate"]

1. e4 {[%clk 0:03:00.9]} 1... e5 {[%clk 0:03:00.1]} 2. Nc3 {[%clk 0:03:00.6]}
2... Nf6 {[%clk 0:02:59.9]} 3. g3 {[%clk 0:03:01]} 3... c6 {[%clk 0:02:50.5]} 4.
Bg2 {[%clk 0:02:59.1]} 4... d5 {[%clk 0:02:49.2]} 5. d3 {[%clk 0:02:46]} 5...
Bc5 {[%clk 0:02:42.7]} 6. Nge2 {[%clk 0:02:30.6]} 6... O-O {[%clk 0:02:41.4]} 7.
O-O {[%clk 0:02:29.6]} 7... Be6 {[%clk 0:02:38.5]} 8. Bg5 {[%clk 0:02:27.4]}
8... Be7 {[%clk 0:02:21.3]} 9. Kh1 {[%clk 0:02:14]} 9... h6 {[%clk 0:02:18.7]}
10. Bxf6 {[%clk 0:02:13.8]} 10... Bxf6 {[%clk 0:02:18.5]} 11. f4 {[%clk
0:02:10.3]} 11... exf4 {[%clk 0:02:11.3]} 12. Nxf4 {[%clk 0:02:05.6]} 12... Qd6
{[%clk 0:01:51.9]} 13. exd5 {[%clk 0:02:02.1]} 13... cxd5 {[%clk 0:01:50.3]} 14.
Ncxd5 {[%clk 0:01:55.9]} 14... Bxb2 {[%clk 0:01:45.8]} 15. Rb1 {[%clk
0:01:54.5]} 15... Be5 {[%clk 0:01:21.4]} 16. Rxb7 {[%clk 0:01:51.8]} 16... Nc6
{[%clk 0:01:21.8]} 17. Nc7 {[%clk 0:01:10.7]} 17... Rab8 {[%clk 0:01:12.8]} 18.
Rxb8 {[%clk 0:01:07.5]} 18... Rxb8 {[%clk 0:01:13.7]} 19. Ncxe6 {[%clk
0:01:05.6]} 19... fxe6 {[%clk 0:01:14.6]} 20. Ng6 {[%clk 0:00:54.1]} 20... Bf6
{[%clk 0:01:12.8]} 21. Qg4 {[%clk 0:00:43.5]} 21... Nd4 {[%clk 0:00:54.3]} 22.
Be4 {[%clk 0:00:38.2]} 22... Nxc2 {[%clk 0:00:49.7]} 23. Qf4 {[%clk 0:00:17.5]}
23... Qxf4 {[%clk 0:00:47.5]} 24. Nxf4 {[%clk 0:00:17.3]} 24... Nd4 {[%clk
0:00:45.5]} 25. Kg2 {[%clk 0:00:15.3]} 25... Kf7 {[%clk 0:00:40.8]} 26. Kh3
{[%clk 0:00:13.2]} 26... Ke7 {[%clk 0:00:40.4]} 27. Rc1 {[%clk 0:00:12.8]} 27...
Kd6 {[%clk 0:00:39.8]} 28. Rc4 {[%clk 0:00:12.3]} 28... a5 {[%clk 0:00:31.3]}
29. Ra4 {[%clk 0:00:11.8]} 29... Rb5 {[%clk 0:00:31.8]} 30. Kg2 {[%clk 0:00:10]}
30... g5 {[%clk 0:00:30.7]} 31. Nh5 {[%clk 0:00:09.8]} 31... Be5 {[%clk
0:00:31.3]} 32. Kh3 {[%clk 0:00:10.3]} 32... Bh8 {[%clk 0:00:30.5]} 33. Rc4
{[%clk 0:00:10]} 33... Be5 {[%clk 0:00:27.6]} 34. Kg2 {[%clk 0:00:07.9]} 34...
Rb2+ {[%clk 0:00:27.5]} 35. Kh3 {[%clk 0:00:08.1]} 35... Rxa2 {[%clk 0:00:27.6]}
36. Rc8 {[%clk 0:00:08.3]} 36... a4 {[%clk 0:00:26.9]} 37. Rd8+ {[%clk
0:00:08.1]} 37... Ke7 {[%clk 0:00:26.5]} 38. Ra8 {[%clk 0:00:07.7]} 38... a3
{[%clk 0:00:26.9]} 39. Ra7+ {[%clk 0:00:07.8]} 39... Kd6 {[%clk 0:00:25.2]} 40.
Ra6+ {[%clk 0:00:08.1]} 40... Kc7 {[%clk 0:00:23.4]} 41. Ra7+ {[%clk 0:00:07.2]}
41... Kb6 {[%clk 0:00:23.5]} 42. Rb7+ {[%clk 0:00:07.4]} 42... Ka6 {[%clk
0:00:23.7]} 43. Rb4 {[%clk 0:00:05.5]} 43... Ka5 {[%clk 0:00:20.5]} 44. Rb7
{[%clk 0:00:04.4]} 44... Rb2 {[%clk 0:00:20.9]} 45. Ra7+ {[%clk 0:00:04.4]}
45... Kb4 {[%clk 0:00:21.4]} 46. Kg4 {[%clk 0:00:03.9]} 46... a2 {[%clk
0:00:20.7]} 47. h4 {[%clk 0:00:03.7]} 47... gxh4 {[%clk 0:00:20.5]} 48. Nf4
{[%clk 0:00:03.5]} 48... hxg3 {[%clk 0:00:19.7]} 49. Rb7+ {[%clk 0:00:03.1]}
49... Kc3 {[%clk 0:00:19.6]} 50. Ra7 {[%clk 0:00:02.9]} 50... Bxf4 {[%clk
0:00:19.2]} 51. Kxf4 {[%clk 0:00:03]} 51... g2 {[%clk 0:00:19.7]} 52. Bxg2
{[%clk 0:00:02.6]} 52... Rxg2 {[%clk 0:00:20.2]} 53. Ke5 {[%clk 0:00:02.6]}
53... Nb3 {[%clk 0:00:20.1]} 54. Rc7+ {[%clk 0:00:02.4]} 54... Kb4 {[%clk
0:00:19.8]} 55. Rb7+ {[%clk 0:00:02.6]} 55... Ka4 {[%clk 0:00:20.3]} 56. Ra7+
{[%clk 0:00:03]} 56... Na5 {[%clk 0:00:20.9]} 57. Rd7 {[%clk 0:00:03.1]} 57...
a1=Q+ {[%clk 0:00:21.1]} 58. d4 {[%clk 0:00:04]} 58... Qe1+ {[%clk 0:00:21.4]}
59. Kd6 {[%clk 0:00:04.3]} 59... Qb4+ {[%clk 0:00:21.4]} 60. Ke5 {[%clk
0:00:04.5]} 60... Re2+ {[%clk 0:00:21.5]} 61. Kf6 {[%clk 0:00:04.7]} 61... Qf8+
{[%clk 0:00:21.7]} 62. Kg6 {[%clk 0:00:04.6]} 62... Rg2+ {[%clk 0:00:21.5]} 63.
Kh5 {[%clk 0:00:05]} 63... Qf5+ {[%clk 0:00:21.6]} 64. Kh4 {[%clk 0:00:05.2]}
64... Qg4# {[%clk 0:00:22]} 0-1

[Event "*** Titled Tuesday Blitz"]
[Site "Chess.com"]
[Date "2020.04.28"]
[Round "8"]
[White "stanyga"]
[Black "CSB7"]
[Result "1-0"]
[WhiteElo "2704"]
[BlackElo "2522"]
[TimeControl "180+1"]
[EndTime "11:36:51 PDT"]
[Termination "stanyga won on time"]

1. e4 {[%clk 0:03:00.9]} 1... e5 {[%clk 0:02:59.1]} 2. Nf3 {[%clk 0:03:00.5]}
2... Nc6 {[%clk 0:02:59.7]} 3. Bb5 {[%clk 0:03:01.1]} 3... Nf6 {[%clk
0:02:58.7]} 4. O-O {[%clk 0:02:56.4]} 4... Nxe4 {[%clk 0:02:56.8]} 5. d4 {[%clk
0:02:56.4]} 5... Nd6 {[%clk 0:02:57.2]} 6. Bxc6 {[%clk 0:02:56.8]} 6... dxc6
{[%clk 0:02:58.1]} 7. dxe5 {[%clk 0:02:57]} 7... Nf5 {[%clk 0:02:58.7]} 8. Qxd8+
{[%clk 0:02:51.3]} 8... Kxd8 {[%clk 0:02:59.6]} 9. Nc3 {[%clk 0:02:49.2]} 9...
Bd7 {[%clk 0:02:59.9]} 10. h3 {[%clk 0:02:45.4]} 10... h6 {[%clk 0:02:59.7]} 11.
b3 {[%clk 0:02:42.9]} 11... Kc8 {[%clk 0:02:59.8]} 12. Bb2 {[%clk 0:02:43.1]}
12... b6 {[%clk 0:03:00.4]} 13. Ne2 {[%clk 0:02:40.2]} 13... c5 {[%clk
0:02:51.7]} 14. Nf4 {[%clk 0:02:35.9]} 14... Kb7 {[%clk 0:02:39.8]} 15. e6
{[%clk 0:02:30.1]} 15... fxe6 {[%clk 0:01:54.7]} 16. Ne5 {[%clk 0:02:28.6]}
16... Bd6 {[%clk 0:01:46.5]} 17. Rfe1 {[%clk 0:02:06.4]} 17... Rhe8 {[%clk
0:01:16.6]} 18. Rad1 {[%clk 0:01:48.6]} 18... Rad8 {[%clk 0:01:00.4]} 19. Nh5
{[%clk 0:01:29.8]} 19... Bc8 {[%clk 0:00:11.4]} 20. Nf7 {[%clk 0:00:44.2]} 20...
Rd7 {[%clk 0:00:07.3]} 21. Nxd6+ {[%clk 0:00:44.2]} 21... cxd6 {[%clk
0:00:08.2]} 22. g4 {[%clk 0:00:42.5]} 22... Nh4 {[%clk 0:00:08.6]} 23. Re3
{[%clk 0:00:28.9]} 23... e5 {[%clk 0:00:05.8]} 24. f4 {[%clk 0:00:24.3]} 24...
Rf7 {[%clk 0:00:01.7]} 25. Rxd6 {[%clk 0:00:19.1]} 25... e4 {[%clk 0:00:01.9]}
26. Nxg7 {[%clk 0:00:09.8]} 26... Rg8 {[%clk 0:00:02.3]} 27. Nh5 {[%clk
0:00:08.4]} 27... Bxg4 {[%clk 0:00:02.8]} 28. hxg4 {[%clk 0:00:08]} 28... Rxg4+
{[%clk 0:00:03.7]} 29. Rg3 {[%clk 0:00:07.1]} 29... Rxg3+ {[%clk 0:00:03]} 30.
Nxg3 {[%clk 0:00:08]} 30... Rxf4 {[%clk 0:00:02.9]} 31. Rf6 {[%clk 0:00:07.6]}
31... Rg4 {[%clk 0:00:02.9]} 32. Kf2 {[%clk 0:00:07.7]} 32... Nf3 {[%clk
0:00:02.3]} 33. Nxe4 {[%clk 0:00:06.9]} 33... Nd4 {[%clk 0:00:01.6]} 34. Bxd4
{[%clk 0:00:06.1]} 34... cxd4 {[%clk 0:00:02.5]} 35. Kf3 {[%clk 0:00:06.4]}
35... Rh4 {[%clk 0:00:02.6]} 36. Nf2 {[%clk 0:00:06.8]} 36... Ka6 {[%clk
0:00:02.3]} 37. Rf4 {[%clk 0:00:07.2]} 37... Rh2 {[%clk 0:00:02.6]} 38. Rxd4
{[%clk 0:00:07]} 38... Rh5 {[%clk 0:00:01.9]} 39. a4 {[%clk 0:00:07]} 39... Rc5
{[%clk 0:00:02.2]} 40. c4 {[%clk 0:00:06.2]} 40... h5 {[%clk 0:00:02.6]} 41. Ne4
{[%clk 0:00:06.7]} 41... Rc8 {[%clk 0:00:02.5]} 42. Ke3 {[%clk 0:00:07]} 42...
Ka5 {[%clk 0:00:02.9]} 43. Rd5+ {[%clk 0:00:07]} 43... Kb4 {[%clk 0:00:02.8]}
44. Rb5+ {[%clk 0:00:07.4]} 44... Ka3 {[%clk 0:00:03.3]} 45. Rxh5 {[%clk
0:00:06.1]} 45... Kxb3 {[%clk 0:00:03.1]} 46. a5 {[%clk 0:00:06.6]} 46... Kb4
{[%clk 0:00:01.6]} 47. axb6 {[%clk 0:00:06.6]} 47... axb6 {[%clk 0:00:02.5]} 48.
Rb5+ {[%clk 0:00:06.9]} 48... Ka4 {[%clk 0:00:03]} 49. Kd3 {[%clk 0:00:06.9]}
49... Rd8+ {[%clk 0:00:01.4]} 50. Kc3 {[%clk 0:00:07.1]} 50... Rb8 {[%clk
0:00:01.6]} 51. Nf2 {[%clk 0:00:07.1]} 51... Ka3 {[%clk 0:00:01.4]} 52. Nd3
{[%clk 0:00:08]} 52... Ka4 {[%clk 0:00:01.5]} 53. Rb4+ {[%clk 0:00:08.2]} 53...
Ka3 {[%clk 0:00:01.8]} 54. c5 {[%clk 0:00:07.9]} 54... b5 {[%clk 0:00:02]} 55.
Rb3+ {[%clk 0:00:07.2]} 55... Ka4 {[%clk 0:00:02.1]} 56. Kd4 {[%clk 0:00:07.5]}
56... Rd8+ {[%clk 0:00:01.8]} 57. Kc3 {[%clk 0:00:07]} 1-0

[Event "*** Titled Tuesday Blitz"]
[Site "Chess.com"]
[Date "2020.04.28"]
[Round "8"]
[White "SergioGarciaFuentes"]
[Black "korkmaz16"]
[Result "0-1"]
[WhiteElo "2089"]
[BlackElo "2279"]
[TimeControl "180+1"]
[EndTime "11:36:51 PDT"]
[Termination "korkmaz16 won on time"]

1. Nf3 {[%clk 0:03:00.9]} 1... d5 {[%clk 0:02:58.3]} 2. g3 {[%clk 0:03:00.5]}
2... Nf6 {[%clk 0:02:57.3]} 3. Bg2 {[%clk 0:03:00.6]} 3... c6 {[%clk 0:02:55.3]}
4. b3 {[%clk 0:02:59.4]} 4... Bf5 {[%clk 0:02:53.6]} 5. Bb2 {[%clk 0:02:56.1]}
5... e6 {[%clk 0:02:52.8]} 6. c4 {[%clk 0:02:55]} 6... h6 {[%clk 0:02:52.2]} 7.
d3 {[%clk 0:02:54.2]} 7... Be7 {[%clk 0:02:49.4]} 8. Nbd2 {[%clk 0:02:54.5]}
8... O-O {[%clk 0:02:47.7]} 9. O-O {[%clk 0:02:55.1]} 9... Nbd7 {[%clk
0:02:47.2]} 10. a3 {[%clk 0:02:54.2]} 10... a5 {[%clk 0:02:46.5]} 11. Rc1 {[%clk
0:02:53.7]} 11... Qb6 {[%clk 0:02:09.8]} 12. Rc2 {[%clk 0:02:46.7]} 12... Rac8
{[%clk 0:01:43.6]} 13. Qa1 {[%clk 0:02:44.3]} 13... Rfd8 {[%clk 0:01:33.2]} 14.
h3 {[%clk 0:02:09]} 14... Bh7 {[%clk 0:01:29]} 15. Re1 {[%clk 0:02:08.8]} 15...
Bc5 {[%clk 0:01:24.2]} 16. Rf1 {[%clk 0:02:01.1]} 16... Bf8 {[%clk 0:00:59.3]}
17. Rfc1 {[%clk 0:01:53.6]} 17... dxc4 {[%clk 0:00:49.8]} 18. bxc4 {[%clk
0:01:19.4]} 18... Bc5 {[%clk 0:00:46.3]} 19. Rf1 {[%clk 0:01:16.7]} 19... a4
{[%clk 0:00:38.8]} 20. Ne5 {[%clk 0:01:01.6]} 20... Nxe5 {[%clk 0:00:37.9]} 21.
Bxe5 {[%clk 0:01:02.2]} 21... Ne8 {[%clk 0:00:29.2]} 22. Rb2 {[%clk 0:00:51.2]}
22... Qa7 {[%clk 0:00:28.4]} 23. Rfb1 {[%clk 0:00:49.9]} 23... Rd7 {[%clk
0:00:25.4]} 24. Rf1 {[%clk 0:00:39.9]} 24... f6 {[%clk 0:00:20.2]} 25. Bc3
{[%clk 0:00:39.5]} 25... e5 {[%clk 0:00:19.4]} 26. Rbb1 {[%clk 0:00:35.9]} 26...
Nd6 {[%clk 0:00:16.7]} 27. h4 {[%clk 0:00:34.1]} 27... Nf5 {[%clk 0:00:16.9]}
28. Bh3 {[%clk 0:00:34.2]} 28... Rcd8 {[%clk 0:00:16.8]} 29. Ne4 {[%clk
0:00:23.8]} 29... Bd4 {[%clk 0:00:15.3]} 30. Bxd4 {[%clk 0:00:18.5]} 30... Rxd4
{[%clk 0:00:11.9]} 31. Qb2 {[%clk 0:00:14.1]} 31... Nd6 {[%clk 0:00:11.2]} 32.
Nxd6 {[%clk 0:00:13]} 32... R4xd6 {[%clk 0:00:11.3]} 33. Qxb7 {[%clk 0:00:13.7]}
33... Qc5 {[%clk 0:00:11.5]} 34. Qb4 {[%clk 0:00:11.8]} 34... Qd4 {[%clk
0:00:11.5]} 35. Qxa4 {[%clk 0:00:11.9]} 35... c5 {[%clk 0:00:11.5]} 36. Qb5
{[%clk 0:00:11.2]} 36... e4 {[%clk 0:00:08.7]} 37. Rfd1 {[%clk 0:00:09.6]} 37...
exd3 {[%clk 0:00:09.1]} 38. Bf1 {[%clk 0:00:08.6]} 38... d2 {[%clk 0:00:09.1]}
39. e3 {[%clk 0:00:08.2]} 39... Qe5 {[%clk 0:00:10]} 40. Qb2 {[%clk 0:00:06]}
40... Be4 {[%clk 0:00:10.8]} 41. Qxe5 {[%clk 0:00:05.8]} 41... fxe5 {[%clk
0:00:11.7]} 42. Bg2 {[%clk 0:00:02.2]} 42... Bxb1 {[%clk 0:00:11.5]} 43. Bd5+
{[%clk 0:00:02]} 43... Rxd5 {[%clk 0:00:11.4]} 44. cxd5 {[%clk 0:00:02.7]} 44...
Rxd5 {[%clk 0:00:10.5]} 45. Rxb1 {[%clk 0:00:02.5]} 45... Rd4 {[%clk 0:00:10.8]}
46. Rd1 {[%clk 0:00:02.8]} 46... Rd3 {[%clk 0:00:10.8]} 47. Kf1 {[%clk 0:00:03]}
47... c4 {[%clk 0:00:11.7]} 48. Ke2 {[%clk 0:00:03.6]} 48... e4 {[%clk
0:00:12.6]} 49. f3 {[%clk 0:00:03]} 49... Rxa3 {[%clk 0:00:13.5]} 50. fxe4
{[%clk 0:00:03]} 50... c3 {[%clk 0:00:14.4]} 51. Kd3 {[%clk 0:00:03.1]} 51...
Rb3 {[%clk 0:00:14.1]} 52. Kc2 {[%clk 0:00:03.5]} 52... Ra3 {[%clk 0:00:13.6]}
53. Rb1 {[%clk 0:00:03.6]} 53... Kh7 {[%clk 0:00:13.2]} 54. e5 {[%clk
0:00:03.6]} 54... Kg6 {[%clk 0:00:13]} 55. e6 {[%clk 0:00:04]} 55... Kf6 {[%clk
0:00:13.3]} 56. Rf1+ {[%clk 0:00:04.6]} 56... Kxe6 {[%clk 0:00:13.4]} 57. Rb1
{[%clk 0:00:03.5]} 57... Ke5 {[%clk 0:00:13.1]} 58. Kd3 {[%clk 0:00:02.5]} 58...
Rb3 {[%clk 0:00:10.5]} 0-1

[Event "*** Titled Tuesday Blitz"]
[Site "Chess.com"]
[Date "2020.04.28"]
[Round "8"]
[White "EfM13"]
[Black "ShahMatKanal"]
[Result "0-1"]
[WhiteElo "2254"]
[BlackElo "2441"]
[TimeControl "180+1"]
[EndTime "11:36:52 PDT"]
[Termination "ShahMatKanal won on time"]

1. e4 {[%clk 0:03:00.9]} 1... d5 {[%clk 0:02:58.1]} 2. exd5 {[%clk 0:03:00.3]}
2... Qxd5 {[%clk 0:02:59]} 3. Nc3 {[%clk 0:03:00.1]} 3... Qd6 {[%clk 0:02:58.3]}
4. d4 {[%clk 0:03:00.1]} 4... Nf6 {[%clk 0:02:58.4]} 5. Nf3 {[%clk 0:03:00.1]}
5... c6 {[%clk 0:02:58.6]} 6. Bc4 {[%clk 0:02:48.7]} 6... Bg4 {[%clk 0:02:57.6]}
7. Be3 {[%clk 0:02:48.4]} 7... e6 {[%clk 0:02:56.6]} 8. O-O {[%clk 0:02:43.1]}
8... Be7 {[%clk 0:02:54.4]} 9. Be2 {[%clk 0:02:26]} 9... O-O {[%clk 0:02:52.1]}
10. Qd2 {[%clk 0:02:22.5]} 10... Qc7 {[%clk 0:02:48]} 11. h3 {[%clk 0:02:02.5]}
11... Bh5 {[%clk 0:02:45.6]} 12. Bf4 {[%clk 0:01:58.8]} 12... Bd6 {[%clk
0:02:45.3]} 13. Ne5 {[%clk 0:01:55.9]} 13... Bxe2 {[%clk 0:02:45]} 14. Qxe2
{[%clk 0:01:56.2]} 14... Nd5 {[%clk 0:02:43.4]} 15. Nxd5 {[%clk 0:01:50.3]}
15... cxd5 {[%clk 0:02:41.7]} 16. Qd2 {[%clk 0:01:25.2]} 16... Nc6 {[%clk
0:02:39.9]} 17. Rfe1 {[%clk 0:01:22.7]} 17... f6 {[%clk 0:02:36.3]} 18. Nd3
{[%clk 0:01:12.2]} 18... Nxd4 {[%clk 0:02:35.5]} 19. c3 {[%clk 0:01:09.4]} 19...
e5 {[%clk 0:02:18.3]} 20. cxd4 {[%clk 0:00:43.7]} 20... exf4 {[%clk 0:02:17.8]}
21. Rac1 {[%clk 0:00:43.6]} 21... Qb6 {[%clk 0:02:06.3]} 22. Nxf4 {[%clk
0:00:40.3]} 22... Bxf4 {[%clk 0:02:03.1]} 23. Qxf4 {[%clk 0:00:39.9]} 23... Qxb2
{[%clk 0:01:53.3]} 24. Rb1 {[%clk 0:00:39.7]} 24... Qxa2 {[%clk 0:01:49.2]} 25.
Rxb7 {[%clk 0:00:39.1]} 25... Rf7 {[%clk 0:00:35.4]} 26. Rxf7 {[%clk 0:00:36.2]}
26... Kxf7 {[%clk 0:00:36.3]} 27. Qc7+ {[%clk 0:00:36.2]} 27... Kg8 {[%clk
0:00:35.2]} 28. Re7 {[%clk 0:00:35.3]} 28... Qb1+ {[%clk 0:00:08.6]} 29. Kh2
{[%clk 0:00:33.4]} 29... Qg6 {[%clk 0:00:09.5]} 30. Qb7 {[%clk 0:00:29.9]} 30...
Rd8 {[%clk 0:00:09]} 31. Qxa7 {[%clk 0:00:23.2]} 31... h5 {[%clk 0:00:08]} 32.
Qa5 {[%clk 0:00:20.4]} 32... Rd6 {[%clk 0:00:06.1]} 33. Qa8+ {[%clk 0:00:19.1]}
33... Kh7 {[%clk 0:00:06.1]} 34. Qb8 {[%clk 0:00:18]} 34... Rc6 {[%clk
0:00:03.5]} 35. Qb5 {[%clk 0:00:16.1]} 35... Rd6 {[%clk 0:00:03.1]} 36. Qc5
{[%clk 0:00:15.9]} 36... Rd8 {[%clk 0:00:03.4]} 37. Qc7 {[%clk 0:00:15.3]} 37...
Ra8 {[%clk 0:00:03.3]} 38. Qc6 {[%clk 0:00:15]} 38... Rd8 {[%clk 0:00:03.4]} 39.
Qc7 {[%clk 0:00:14.5]} 39... Ra8 {[%clk 0:00:03.7]} 40. Qc6 {[%clk 0:00:10]}
40... Ra2 {[%clk 0:00:03.5]} 41. Qxd5 {[%clk 0:00:09.6]} 41... Rxf2 {[%clk
0:00:03.3]} 42. Qb7 {[%clk 0:00:08.5]} 42... h4 {[%clk 0:00:02.2]} 43. Qe4
{[%clk 0:00:08.4]} 43... Qxe4 {[%clk 0:00:01.6]} 44. Rxe4 {[%clk 0:00:08.3]}
44... g5 {[%clk 0:00:02.2]} 45. Re6 {[%clk 0:00:07.8]} 45... Kg6 {[%clk
0:00:02.1]} 46. d5 {[%clk 0:00:07.1]} 46... Rd2 {[%clk 0:00:02.6]} 47. Rd6
{[%clk 0:00:07.4]} 47... Kf5 {[%clk 0:00:02.7]} 48. Kg1 {[%clk 0:00:06.7]} 48...
Ke5 {[%clk 0:00:03]} 49. Rd8 {[%clk 0:00:06.2]} 49... Rxd5 {[%clk 0:00:02]} 50.
Re8+ {[%clk 0:00:06.7]} 50... Kf5 {[%clk 0:00:02.5]} 51. Kf2 {[%clk 0:00:05.9]}
51... Re5 {[%clk 0:00:03.4]} 52. Rf8 {[%clk 0:00:05.5]} 52... Re4 {[%clk
0:00:04.3]} 53. Kf3 {[%clk 0:00:05.3]} 53... Re5 {[%clk 0:00:04.8]} 54. Kf2
{[%clk 0:00:05.1]} 54... Ra5 {[%clk 0:00:04.9]} 55. Kf3 {[%clk 0:00:04.8]} 55...
Ra3+ {[%clk 0:00:04.8]} 56. Kf2 {[%clk 0:00:04.9]} 56... Ra6 {[%clk 0:00:05.7]}
57. Kf3 {[%clk 0:00:05]} 57... Ra5 {[%clk 0:00:05.7]} 58. Kf2 {[%clk 0:00:05]}
58... Rb5 {[%clk 0:00:06]} 59. Kf3 {[%clk 0:00:05]} 59... Rb6 {[%clk 0:00:06.4]}
60. Kf2 {[%clk 0:00:04.8]} 60... Kf4 {[%clk 0:00:06.8]} 61. Rc8 {[%clk
0:00:02.6]} 61... Rb4 {[%clk 0:00:06.7]} 0-1

[Event "*** Titled Tuesday Blitz"]
[Site "Chess.com"]
[Date "2020.04.28"]
[Round "8"]
[White "Teidi96"]
[Black "binbin239"]
[Result "1/2-1/2"]
[WhiteElo "2257"]
[BlackElo "2422"]
[TimeControl "180+1"]
[EndTime "11:36:58 PDT"]
[Termination "Game drawn by repetition"]

1. e4 {[%clk 0:03:00.9]} 1... c5 {[%clk 0:02:59.5]} 2. Nf3 {[%clk 0:03:01]} 2...
Nc6 {[%clk 0:03:00.1]} 3. d4 {[%clk 0:02:59.9]} 3... cxd4 {[%clk 0:03:00.6]} 4.
Nxd4 {[%clk 0:03:00.8]} 4... g6 {[%clk 0:03:01]} 5. c4 {[%clk 0:03:00]} 5... Nf6
{[%clk 0:03:00.8]} 6. Nc3 {[%clk 0:02:57.9]} 6... d6 {[%clk 0:03:00.1]} 7. Be2
{[%clk 0:02:56.7]} 7... Nxd4 {[%clk 0:02:59.1]} 8. Qxd4 {[%clk 0:02:55.7]} 8...
Bg7 {[%clk 0:02:59.8]} 9. O-O {[%clk 0:02:55.7]} 9... O-O {[%clk 0:03:00.2]} 10.
h3 {[%clk 0:02:53.4]} 10... Be6 {[%clk 0:03:00.6]} 11. Qe3 {[%clk 0:02:52.3]}
11... Qa5 {[%clk 0:03:00.4]} 12. Bd2 {[%clk 0:02:34.7]} 12... Rfc8 {[%clk
0:02:48.9]} 13. Nd5 {[%clk 0:02:27.4]} 13... Qd8 {[%clk 0:02:48.9]} 14. Rab1
{[%clk 0:02:14.2]} 14... Nxd5 {[%clk 0:02:28.4]} 15. exd5 {[%clk 0:02:12.7]}
15... Bf5 {[%clk 0:02:27.9]} 16. Bd3 {[%clk 0:02:11.5]} 16... Qd7 {[%clk
0:02:17.9]} 17. Bxf5 {[%clk 0:02:05.1]} 17... Qxf5 {[%clk 0:02:18.1]} 18. Qxe7
{[%clk 0:02:00]} 18... Rxc4 {[%clk 0:02:13.5]} 19. Qxd6 {[%clk 0:01:49.7]} 19...
Rd4 {[%clk 0:02:06.8]} 20. Bc3 {[%clk 0:01:36.6]} 20... Rxd5 {[%clk 0:02:05.1]}
21. Qc7 {[%clk 0:01:34.9]} 21... Rd7 {[%clk 0:02:02.9]} 22. Qc4 {[%clk 0:01:24]}
22... Bxc3 {[%clk 0:02:00.7]} 23. Qxc3 {[%clk 0:01:24.9]} 23... Rad8 {[%clk
0:02:00.7]} 24. Rbe1 {[%clk 0:01:18.6]} 24... Qd5 {[%clk 0:01:55.7]} 25. b3
{[%clk 0:01:15]} 25... Qg5 {[%clk 0:01:41.4]} 26. Qe3 {[%clk 0:01:05.8]} 26...
Qa5 {[%clk 0:01:40.1]} 27. Re2 {[%clk 0:00:58.3]} 27... Qb4 {[%clk 0:01:36.1]}
28. Qxa7 {[%clk 0:00:55.1]} 28... b6 {[%clk 0:01:32.6]} 29. Qa6 {[%clk
0:00:53.4]} 29... Qc5 {[%clk 0:01:22.2]} 30. Qc4 {[%clk 0:00:50.6]} 30... Qa5
{[%clk 0:01:12.8]} 31. Rfe1 {[%clk 0:00:47.5]} 31... b5 {[%clk 0:01:08.5]} 32.
Qf4 {[%clk 0:00:43]} 32... Qa8 {[%clk 0:01:08.1]} 33. Qg5 {[%clk 0:00:37]} 33...
Qb8 {[%clk 0:00:57.4]} 34. a4 {[%clk 0:00:32.2]} 34... bxa4 {[%clk 0:00:57.3]}
35. bxa4 {[%clk 0:00:31.9]} 35... Rd5 {[%clk 0:00:57.6]} 36. Qh6 {[%clk
0:00:30]} 36... Rh5 {[%clk 0:00:56.6]} 37. Qe3 {[%clk 0:00:27.9]} 37... Rhd5
{[%clk 0:00:56.5]} 38. Qc3 {[%clk 0:00:27.2]} 38... Rd3 {[%clk 0:00:55.5]} 39.
Re8+ {[%clk 0:00:25]} 39... Rxe8 {[%clk 0:00:52.7]} 40. Rxe8+ {[%clk 0:00:25.9]}
40... Qxe8 {[%clk 0:00:53.1]} 41. Qxd3 {[%clk 0:00:26.3]} 41... Qxa4 {[%clk
0:00:53.3]} 42. Qe3 {[%clk 0:00:26.4]} 42... Qd1+ {[%clk 0:00:52.9]} 43. Kh2
{[%clk 0:00:25.9]} 43... Qd6+ {[%clk 0:00:53.4]} 44. g3 {[%clk 0:00:25.9]} 44...
Qf6 {[%clk 0:00:52.5]} 45. Kg2 {[%clk 0:00:25.9]} 45... h5 {[%clk 0:00:52.3]}
46. h4 {[%clk 0:00:25.3]} 46... Qc6+ {[%clk 0:00:52.5]} 47. Qf3 {[%clk
0:00:25.4]} 47... Qc5 {[%clk 0:00:52.6]} 48. Qa8+ {[%clk 0:00:24]} 48... Kg7
{[%clk 0:00:52.7]} 49. Qf3 {[%clk 0:00:24.3]} 49... Qd6 {[%clk 0:00:52.8]} 50.
Qe4 {[%clk 0:00:24]} 50... Qf6 {[%clk 0:00:52.5]} 51. Qf3 {[%clk 0:00:23.3]}
51... Qe5 {[%clk 0:00:52.7]} 52. Qd3 {[%clk 0:00:22.5]} 52... Qc5 {[%clk
0:00:51.6]} 53. Kf3 {[%clk 0:00:21.9]} 53... Qc6+ {[%clk 0:00:51.3]} 54. Qe4
{[%clk 0:00:21.6]} 54... Qc3+ {[%clk 0:00:51.5]} 55. Qe3 {[%clk 0:00:21.8]}
55... Qf6+ {[%clk 0:00:51.7]} 56. Qf4 {[%clk 0:00:21.2]} 56... Qb2 {[%clk
0:00:51]} 57. Qe4 {[%clk 0:00:20]} 57... Qc3+ {[%clk 0:00:50.5]} 58. Qe3 {[%clk
0:00:19.7]} 58... Qc6+ {[%clk 0:00:50.4]} 59. Qe4 {[%clk 0:00:19.6]} 59... Qd7
{[%clk 0:00:50.7]} 60. Qf4 {[%clk 0:00:17.4]} 60... Qd1+ {[%clk 0:00:50.5]} 61.
Kg2 {[%clk 0:00:16.6]} 61... Qd5+ {[%clk 0:00:49]} 62. Qf3 {[%clk 0:00:17]}
62... Qe6 {[%clk 0:00:49.4]} 63. Qf4 {[%clk 0:00:16.6]} 63... f6 {[%clk
0:00:49.6]} 64. Qf3 {[%clk 0:00:15.2]} 64... Kh6 {[%clk 0:00:49.2]} 65. Qf4+
{[%clk 0:00:15.2]} 65... g5 {[%clk 0:00:49.3]} 66. hxg5+ {[%clk 0:00:15.3]}
66... fxg5 {[%clk 0:00:49.6]} 67. Qf8+ {[%clk 0:00:15.5]} 67... Kg6 {[%clk
0:00:49.6]} 68. Qf3 {[%clk 0:00:15]} 68... g4 {[%clk 0:00:47.9]} 69. Qd3+ {[%clk
0:00:14.3]} 69... Kg5 {[%clk 0:00:47]} 70. Qe3+ {[%clk 0:00:07.6]} 70... Qxe3
{[%clk 0:00:46.7]} 71. fxe3 {[%clk 0:00:08.5]} 71... Kf5 {[%clk 0:00:47.2]} 72.
Kf2 {[%clk 0:00:08.9]} 72... Ke5 {[%clk 0:00:47]} 73. Kf1 {[%clk 0:00:08.7]}
73... Kf5 {[%clk 0:00:46.8]} 74. Kf2 {[%clk 0:00:08.6]} 74... Ke5 {[%clk
0:00:46.9]} 75. Kf1 {[%clk 0:00:09.1]} 75... Kf5 {[%clk 0:00:47.1]} 76. Kf2
{[%clk 0:00:09.2]} 1/2-1/2